Workbook

Sheet Formato
B2: FORMATO PARA MODIFICACIÓN DE ÓRDENES DE COMPRA
B3: Tienda Virtual del Estado Colombiano
B5: Número de Orden de Compra a modificar: | E5: 12944 | H5: Número de modificación de la Orden de Compra: | K5: 2
B8: Entidad Compradora: | D8: ICETEX | L8: NIT: | M8: 899999035-7
B10: Nombre del solicitante: | D10: ANA CLEMENCIA SILVA NIGRINIS | K10: Teléfono de contacto: | M10: 3821670
B12: Proveedor : | D12: CONALCREDITOS CONALCENTER BPO
B14: Sección 1: Tipo de acción
B16: Tipo | D16: Modificación de Orden de Compra
B18: Sección 2: Justificación de la modificación o de las acciones a realizar
B20: El objetivo de la presente modificación es ajustar los precios de los items de la orden de compra entre el proveedor de Centro de Contacto Conalcréditos y el ICETEX de mutuo acuerdo. Esto se da en razón a que los precios ofertados por el proveedor estan muy altos y comparativamente frente a los de la la Orden de Compra No. 13214 con Interactivo Contact Center en quienes también se proveen servicios de centro de contacto están mas bajos. De acuerdo con lo anterior, el proveedor evaluó la posibilidad de reducir sus precios los cuales se presentan en la presente modificación.
B22: Sección 3: Modificación información general
B24: Nombre del campo | D24: ¿Requiere modificación Si/No? | E24: Datos actuales | J24: Nuevos datos
B26: Actualizar supervisor | D26: NO | E26: Nombre del supervisor actual | G26: 0 | J26: Nombre nuevo supervisor
B28: Dirección y/o teléfono Supervisor | D28: NO | E28: Teléfono actual supervisor | G28: 0 | J28: Teléfono nuevo supervisor
B30: Fecha de vencimiento | D30: NO | E30: La fecha vencimiento actual se tomará de la TVEC al momento del cambio | J30: Nueva fecha de vencimiento
B32: Dirección y/o teléfono Entidad | D32: NO | E32: Dirección / teléfono actual Entidad | G32: 0 | J32: Nueva dirección / teléfono Entidad
A36: Sección 4: Modificación de artículos y servicios
A38: Tipo de modificación | B38: Información actual | K38: Nueva información
B39: Número de la línea según O.C. | C39: Nombre del artículo | E39: Cantidad | F39: Unidad de medida | G39: Precio unitario | H39: Total | I39: Información presupuestal | K39: Nombre del artículo | M39: Cantidad | N39: Unidad de medida | O39: Precio unitario | P39: Total | Q39: Información presupuestal
A40: Modificación de artículo o servicio | B40: 1 | C40: 654 - Agente Minero de Datos-Agente profesional_Mes_Baja-Plata - 1 Und | E40: 14 | F40: mes | G40: 5400000 | H40: =ROUND(E40*G40, 2) -> 75600000 | I40: CDP VF-2016-043 | K40: =C40 -> 654 - Agente Minero de Datos-Agente profesional_Mes_Baja-Plata - 1 Und | M40: 9 | N40: mes | O40: 5400000 | P40: =ROUND(M40*O40, 2) -> 48600000 | Q40: CDP VF-2016-043
A41: Agregar nuevo artículo o servicio | B41: No aplica | C41: No aplica | E41: No aplica | F41: No aplica | G41: No aplica | H41: 0 | I41: No aplica | K41: =K40 -> 654 - Agente Minero de Datos-Agente profesional_Mes_Baja-Plata - 1 Und | M41: 5 | N41: mes | O41: 4700000 | P41: 23500000 | Q41: CDP VF-2016-043
A42: Modificación de artículo o servicio | B42: 3 | C42: 1317 - Mailing-__-Plata - 300000 Mail Individual | E42: 14 | F42: mes | G42: 8400000 | H42: =ROUND(E42*G42, 2) -> 117600000 | I42: CDP VF-2016-043 | K42: =C42 -> 1317 - Mailing-__-Plata - 300000 Mail Individual | M42: 9 | N42: mes | O42: 8400000 | P42: 75600000 | Q42: CDP VF-2016-043
A43: Agregar nuevo artículo o servicio | B43: No aplica | C43: No aplica | E43: No aplica | F43: No aplica | G43: No aplica | H43: 0 | I43: No aplica | K43: =K42 -> 1317 - Mailing-__-Plata - 300000 Mail Individual | M43: 5 | N43: mes | O43: 1800000 | P43: 9000000 | Q43: CDP VF-2016-043
A44: Modificación de artículo o servicio | B44: 4 | C44: 1309 - Mensaje SMS - Claro-__-Plata - 90000 Mensaje SMS | E44: 14 | F44: mes | G44: 7020000 | H44: =ROUND(E44*G44, 2) -> 98280000 | I44: CDP VF-2016-043 | K44: =C44 -> 1309 - Mensaje SMS - Claro-__-Plata - 90000 Mensaje SMS | M44: 9 | N44: mes | O44: 7020000 | P44: 63180000 | Q44: CDP VF-2016-043
A45: Agregar nuevo artículo o servicio | B45: No aplica | C45: No aplica | E45: No aplica | F45: No aplica | G45: No aplica | H45: 0 | I45: No aplica | K45: =K44 -> 1309 - Mensaje SMS - Claro-__-Plata - 90000 Mensaje SMS | M45: 5 | N45: mes | O45: 1980000 | P45: 9900000 | Q45: CDP VF-2016-043
A46: Modificación de artículo o servicio | B46: 5 | C46: 1310 - Mensaje SMS - Movistar-__-Plata - 90000 Mensaje SMS | E46: 14 | F46: mes | G46: 7020000 | H46: =ROUND(E46*G46, 2) -> 98280000 | I46: CDP VF-2016-043 | K46: =C46 -> 1310 - Mensaje SMS - Movistar-__-Plata - 90000 Mensaje SMS | M46: 9 | N46: mes | O46: 7020000 | P46: 63180000 | Q46: CDP VF-2016-043
A47: Agregar nuevo artículo o servicio | B47: No aplica | C47: No aplica | E47: No aplica | F47: No aplica | G47: No aplica | H47: 0 | I47: No aplica | K47: =K46 -> 1310 - Mensaje SMS - Movistar-__-Plata - 90000 Mensaje SMS | M47: 5 | N47: mes | O47: 1980000 | P47: 9900000 | Q47: CDP VF-2016-043
A48: Modificación de artículo o servicio | B48: 6 | C48: 1312 - Mensaje SMS - Otros Operadores-__-Plata - 5000 Mensaje SMS | E48: 14 | F48: mes | G48: 390000 | H48: =ROUND(E48*G48, 2) -> 5460000 | I48: CDP VF-2016-043 | K48: =C48 -> 1312 - Mensaje SMS - Otros Operadores-__-Plata - 5000 Mensaje SMS | M48: 9 | N48: mes | O48: 390000 | P48: 3510000 | Q48: CDP VF-2016-043
A49: Agregar nuevo artículo o servicio | B49: No aplica | C49: No aplica | E49: No aplica | F49: No aplica | G49: No aplica | H49: 0 | I49: No aplica | K49: =K48 -> 1312 - Mensaje SMS - Otros Operadores-__-Plata - 5000 Mensaje SMS | M49: 5 | N49: mes | O49: 110000 | P49: 550000 | Q49: CDP VF-2016-043
A50: Modificación de artículo o servicio | B50: 7 | C50: 1311 - Mensaje SMS - Tigo-__-Plata - 90000 Mensaje SMS | E50: 14 | F50: mes | G50: 7020000 | H50: =ROUND(E50*G50, 2) -> 98280000 | I50: CDP VF-2016-043 | K50: =C50 -> 1311 - Mensaje SMS - Tigo-__-Plata - 90000 Mensaje SMS | M50: 9 | N50: mes | O50: 7020000 | P50: 63180000 | Q50: CDP VF-2016-043
A51: Agregar nuevo artículo o servicio | B51: No aplica | C51: No aplica | E51: No aplica | F51: No aplica | G51: No aplica | H51: 0 | I51: No aplica | K51: =K50 -> 1311 - Mensaje SMS - Tigo-__-Plata - 90000 Mensaje SMS | M51: 5 | N51: mes | O51: 1980000 | P51: 9900000 | Q51: CDP VF-2016-043
A52: Modificación de artículo o servicio | B52: 8 | C52: 1213 - Minuto a 1-8000 desde Fijos-__-Plata - 55000 Minuto | E52: 14 | F52: mes | G52: 11715000 | H52: =ROUND(E52*G52, 2) -> 164010000 | I52: CDP VF-2016-043 | K52: =C52 -> 1213 - Minuto a 1-8000 desde Fijos-__-Plata - 55000 Minuto | M52: 9 | N52: mes | O52: 11715000 | P52: 105435000 | Q52: CDP VF-2016-043
A53: Agregar nuevo artículo o servicio | B53: No aplica | C53: No aplica | E53: No aplica | F53: No aplica | G53: No aplica | H53: 0 | I53: No aplica | K53: =K52 -> 1213 - Minuto a 1-8000 desde Fijos-__-Plata - 55000 Minuto | M53: 5 | N53: mes | O53: 9350000 | P53: 46750000 | Q53: CDP VF-2016-043
A54: Modificación de artículo o servicio | B54: 9 | C54: 1221 - Minuto a Celular outbound - Claro-__-Plata - 81000 Minuto | E54: 14 | F54: mes | G54: 7695000 | H54: =ROUND(E54*G54, 2) -> 107730000 | I54: CDP VF-2016-043 | K54: =C54 -> 1221 - Minuto a Celular outbound - Claro-__-Plata - 81000 Minuto | M54: 9 | N54: mes | O54: 7695000 | P54: 69255000 | Q54: CDP VF-2016-043
A55: Agregar nuevo artículo o servicio | B55: No aplica | C55: No aplica | E55: No aplica | F55: No aplica | G55: No aplica | H55: 0 | I55: No aplica | K55: =K54 -> 1221 - Minuto a Celular outbound - Claro-__-Plata - 81000 Minuto | M55: 5 | N55: mes | O55: =50*81000 -> 4050000 | P55: 20250000 | Q55: CDP VF-2016-043
A56: Modificación de artículo o servicio | B56: 10 | C56: 1222 - Minuto a Celular outbound - Movistar-__-Plata - 63000 Minuto | E56: 14 | F56: mes | G56: 5985000 | H56: =ROUND(E56*G56, 2) -> 83790000 | I56: =I54 -> CDP VF-2016-043 | K56: =C56 -> 1222 - Minuto a Celular outbound - Movistar-__-Plata - 63000 Minuto | M56: 9 | N56: mes | O56: 5985000 | P56: 53865000 | Q56: CDP VF-2016-043
A57: Agregar nuevo artículo o servicio | B57: No aplica | C57: No aplica | E57: No aplica | F57: No aplica | G57: No aplica | H57: 0 | I57: No aplica | K57: =K56 -> 1222 - Minuto a Celular outbound - Movistar-__-Plata - 63000 Minuto | M57: 5 | N57: mes | O57: 3150000 | P57: 15750000 | Q57: CDP VF-2016-043
A58: Modificación de artículo o servicio | B58: 11 | C58: 1224 - Minuto a Celular outbound - Otros operadores-__-Plata - 5000 Minuto | E58: 14 | F58: mes | G58: 475000 | H58: =ROUND(E58*G58, 2) -> 6650000 | I58: =I56 -> CDP VF-2016-043 | K58: =C58 -> 1224 - Minuto a Celular outbound - Otros operadores-__-Plata - 5000 Minuto | M58: 9 | N58: mes | O58: 475000 | P58: 4275000 | Q58: CDP VF-2016-043
A59: Agregar nuevo artículo o servicio | B59: No aplica | C59: No aplica | E59: No aplica | F59: No aplica | G59: No aplica | H59: 0 | I59: No aplica | K59: =K58 -> 1224 - Minuto a Celular outbound - Otros operadores-__-Plata - 5000 Minuto | M59: 5 | N59: mes | O59: 250000 | P59: 1250000 | Q59: CDP VF-2016-043
A60: Modificación de artículo o servicio | B60: 12 | C60: 1223 - Minuto a Celular outbound - Tigo-__-Plata - 36000 Minuto | E60: 14 | F60: mes | G60: 3420000 | H60: =ROUND(E60*G60, 2) -> 47880000 | I60: =I58 -> CDP VF-2016-043 | K60: =C60 -> 1223 - Minuto a Celular outbound - Tigo-__-Plata - 36000 Minuto | M60: 9 | N60: mes | O60: 3420000 | P60: 30780000 | Q60: CDP VF-2016-043
A61: Agregar nuevo artículo o servicio | B61: No aplica | C61: No aplica | E61: No aplica | F61: No aplica | G61: No aplica | H61: 0 | I61: No aplica | K61: =K60 -> 1223 - Minuto a Celular outbound - Tigo-__-Plata - 36000 Minuto | M61: 5 | N61: mes | O61: 1800000 | P61: 9000000 | Q61: CDP VF-2016-043
A62: Modificación de artículo o servicio | B62: 13 | C62: 1217 - Minuto Llamada Bogotá Outbound-__-Plata - 120000 Minuto | E62: 14 | F62: mes | G62: 1320000 | H62: =ROUND(E62*G62, 2) -> 18480000 | I62: =I60 -> CDP VF-2016-043 | K62: =C62 -> 1217 - Minuto Llamada Bogotá Outbound-__-Plata - 120000 Minuto | M62: 9 | N62: mes | O62: 1320000 | P62: 11880000 | Q62: CDP VF-2016-043
A63: Agregar nuevo artículo o servicio | B63: No aplica | C63: No aplica | E63: No aplica | F63: No aplica | G63: No aplica | H63: 0 | I63: No aplica | K63: =K62 -> 1217 - Minuto Llamada Bogotá Outbound-__-Plata - 120000 Minuto | M63: 5 | N63: mes | O63: 1412400 | P63: 7062000 | Q63: CDP VF-2016-043
A64: Modificación de artículo o servicio | B64: 14 | C64: 1219 - Minuto larga distancia nacional outbound-__-Plata - 170000 Minuto | E64: 14 | F64: mes | G64: 15300000 | H64: =ROUND(E64*G64, 2) -> 214200000 | I64: =I62 -> CDP VF-2016-043 | K64: =C64 -> 1219 - Minuto larga distancia nacional outbound-__-Plata - 170000 Minuto | M64: 9 | N64: mes | O64: 15300000 | P64: 137700000 | Q64: CDP VF-2016-043
A65: Agregar nuevo artículo o servicio | B65: No aplica | C65: No aplica | E65: No aplica | F65: No aplica | G65: No aplica | H65: 0 | I65: No aplica | K65: =K64 -> 1219 - Minuto larga distancia nacional outbound-__-Plata - 170000 Minuto | M65: 5 | N65: mes | O65: 8500000 | P65: 42500000 | Q65: CDP VF-2016-043
A66: Modificación de artículo o servicio | B66: 15 | C66: 198 - Agente Backoffice-Agente general_Mes_Baja-Plata - 2 Und | E66: 14 | F66: mes | G66: 7200000 | H66: =ROUND(E66*G66, 2) -> 100800000 | I66: =I64 -> CDP VF-2016-043 | K66: =C66 -> 198 - Agente Backoffice-Agente general_Mes_Baja-Plata - 2 Und | M66: 9 | N66: mes | O66: 7200000 | P66: 64800000 | Q66: CDP VF-2016-043
A67: Agregar nuevo artículo o servicio | B67: No aplica | C67: No aplica | E67: No aplica | F67: No aplica | G67: No aplica | H67: 0 | I67: No aplica | K67: =K66 -> 198 - Agente Backoffice-Agente general_Mes_Baja-Plata - 2 Und | M67: 5 | N67: mes | O67: 6300000 | P67: 31500000 | Q67: CDP VF-2016-043
A68: Modificación de artículo o servicio | B68: 17 | C68: 1297 - Minuto IVR Enrutador-__-Plata - 100000 Minuto | E68: 14 | F68: mes | G68: 1300000 | H68: =ROUND(E68*G68, 2) -> 18200000 | I68: =I66 -> CDP VF-2016-043 | K68: =C68 -> 1297 - Minuto IVR Enrutador-__-Plata - 100000 Minuto | M68: 9 | N68: mes | O68: 1300000 | P68: 11700000 | Q68: CDP VF-2016-043
A69: Agregar nuevo artículo o servicio | B69: No aplica | C69: No aplica | E69: No aplica | F69: No aplica | G69: No aplica | H69: 0 | I69: No aplica | K69: =K68 -> 1297 - Minuto IVR Enrutador-__-Plata - 100000 Minuto | M69: 5 | N69: mes | O69: 600000 | P69: 3000000 | Q69: CDP VF-2016-043
A70: Modificación de artículo o servicio | B70: 18 | C70: 6 - Agente con puesto de trabajo-Agente general_Mes_Baja-Plata - 22 Und | E70: 14 | F70: mes | G70: 82500000 | H70: =ROUND(E70*G70, 2) -> 1155000000 | I70: =I68 -> CDP VF-2016-043 | K70: =C70 -> 6 - Agente con puesto de trabajo-Agente general_Mes_Baja-Plata - 22 Und | M70: 9 | N70: mes | O70: 82500000 | P70: 742500000 | Q70: CDP VF-2016-043
A71: Agregar nuevo artículo o servicio | B71: No aplica | C71: No aplica | E71: No aplica | F71: No aplica | G71: No aplica | H71: 0 | I71: No aplica | K71: =K70 -> 6 - Agente con puesto de trabajo-Agente general_Mes_Baja-Plata - 22 Und | M71: 5 | N71: mes | O71: 75900000 | P71: 379500000 | Q71: CDP VF-2016-043
A72: Modificación de artículo o servicio | B72: 19 | C72: 1323 - VPN sobre Internet a Centro de Contacto o Entidad Compradora-__-Plata - 1 Und | E72: 14 | F72: mes | G72: 250000 | H72: =ROUND(E72*G72, 2) -> 3500000 | I72: =I70 -> CDP VF-2016-043 | K72: =C72 -> 1323 - VPN sobre Internet a Centro de Contacto o Entidad Compradora-__-Plata - 1 Und | M72: 9 | N72: mes | O72: 250000 | P72: 2250000 | Q72: CDP VF-2016-043
A73: Agregar nuevo artículo o servicio | B73: No aplica | C73: No aplica | E73: No aplica | F73: No aplica | G73: No aplica | H73: 0 | I73: No aplica | K73: =K72 -> 1323 - VPN sobre Internet a Centro de Contacto o Entidad Compradora-__-Plata - 1 Und | M73: 5 | N73: mes | O73: 192600 | P73: 963000 | Q73: CDP VF-2016-043
G75: Cantidad de celdas a agregar: | I75: 1
A78: Sección 5: Resultados de la modificación
A80: Número de la línea según O.C. | B80: Nombre del artículo | F80: Valores actuales | I80: Nuevos valores
B81: Valor de la línea IVA en la Orden de Compra: | F81: 418393968 | I81: 331539550 | M81: 0
B82: Valor de la línea AIU en la Orden de Compra:
B83: Valor de la línea gravámenes adicionales en la Orden de Compra:
L85: 21 de septiembre de 2017
B88: Firma ordenador del gasto | G88: Firma de Proveedor | L88: Fecha de elaboración
A90: Nombre: | B90: ANA CLEMENCIA SILVA NIGRINIS | F90: Nombre: | G90: MAGNOLIA GIRALDO LOPEZ | K90: Las partes manifestamos que este mismo documento se cargará en la plataforma en formato Excel (.xlsm) y los cambios se pueden validar con el mismo.
A91: Documento de Identidad: | B91: 35467233 | E91: Documento de Identidad: | G91: 31147589

Sheet Instructivo de Diligenciamiento
B4: Instrucciones de diligenciamiento: Colombia Compra Eficiente ha diseñado este formato para que las Entidades Compradoras puedan realizar aclaraciones, modificaciones, cancelaciones o terminaciones y liquidaciones de las Órdenes de Compra que estén en ejecución y vigentes, o ejecutadas. Para ello debe indicar: Datos generales: Datos básicos como número de la Orden de Compra que requiere cambiar, número consecutivo de solicitud tenga en cuenta que la primera solicitud corresponderá a la número “1”, nombre de la Entidad Compradora, nombre de la persona que solicita las acciones, celular o número de teléfono y extensión, NIT de la Entidad Compradora y el nombre del Proveedor que ejecuta la Orden de Compra. Sección 1. Tipo de acción: Las Entidades pueden solicitar cuatro tipos de acciones respecto de las Órdenes de Compra: (i) Aclaraciones: Son las indicaciones de cambio de información que no afectan el plazo, el valor o las condiciones contractuales de las Órdenes de Compra como: redacción en las condiciones de entrega, errores de digitación o rectificación de la fecha de vencimiento. Estas aclaraciones no requieren de la aceptación del Proveedor. Sin embargo una vez realizada la aclaración en la Orden de Compra, la Entidad Compradora debe notificarle al Proveedor el cambio. (ii) Modificaciones: Son indicaciones de cambio en aumento o disminución de valor o plazo, aumento o disminución de los bienes o servicios solicitados, cambios en las condiciones de ejecución o datos que afecten la ejecución de la Orden de Compra. Solo en los casos de cambio de supervisor y datos de notificación como dirección o teléfono se puede omitir la firma del Proveedor. Sin embargo una vez realizada la modificación, la Entidad Compradora debe notificarle al Proveedor el cambio. (iii) Terminación: Puede darse por 2 razones, (i) por manifestación de la Entidad de no iniciar la ejecución de la Orden de Compra la cual también debe ser aceptada por el Proveedor y (ii) por mutuo acuerdo entre las partes de terminar anticipadamente la Orden de Compra. (iv) Liquidación: Este tipo de acción es mediante la cual una Entidad Compradora formaliza la liquidación de las obligaciones derivadas de la Orden de Compra y así establece las acreencias pendientes a favor o en contra de cada parte de la Orden de Compra, también sirve para aclarar la ejecución de la misma. Este tipo de acción se debe aplicar dentro de los términos establecidos en cada Acuerdo Marco, para lo cual se requiere la solicitud por parte de la Entidad Compradora firmada por el Ordenador del Gasto y el representante legal del Proveedor, así como el informe del supervisor de la Orden de Compra. Sección 2. Justificación: Las razones de la realización del cambio de la Orden de Compra. Sección 3. Modificación información general: la idea en esta sección es indicar cuales son los datos de información general de la orden de compra que requiere cambiar Sección 4. Modificación de artículos o servicios: esta sección unicamente aplica en caso de que la acción a realizar sea modificar, terminar o liquidar la orden de compra, allí deberá indicar el tipo de modificación que desea realizar e ingresar o modificar los articulos que desea ajustar. Al momento de diligenciar esta sección tenga en cuenta las siguientes recomendaciones: (i) Las correcciones en el plazo de ejecución son diferentes a las modificaciones en el plazo, ejemplo: la Entidad Compradora adquirió elementos con tres entregas parciales pero digitó como fecha final de la Orden de Compra la fecha de la primera entrega, para corregir esto la Entidad Compradora selecciona en tipo de acción: aclaración y en el campo de fecha de vencimiento indica la fecha correcta. En el caso que fuera cambio de fecha fin, ejemplo: prorrogar o disminuir varios meses la ejecución de la Orden de Compra se utiliza en tipo de acción: modificación. (ii) para la realización de las modificaciones tenga en cuenta las secciones de modificación de cada una de las guías de compra (iii) los valores y cantidades solo pueden tener hasta dos decimales. (iv) la decisión de modificar, adicionar o combinar las dos opciones dependerá de las necesidades de cada Entidad Compradora, ejemplo si es un servicio y adicionalmente solo requiere modificar “cantidad” se recomienda seleccionar “modificación de artículo”, cuando son bienes puede modificar cualquiera de los demás campos. (v) si requiere cambio de condiciones de un servicio ya ejecutado se recomienda modificar la línea para que se refleje la parte ejecutada y adicionar una nueva línea para las nuevas condiciones del servicio que va a ejecutar. Sección 5. Resultados de la modificación: La entidad siempre debe indicar en el recuadro el valor total del IVA, AIU, gravámenes adicionales, estos campos serán los valores finales que quedarán en la Orden de Compra después de la modificación, tenga en cuenta que el campo de IVA no aplica para algunos AMP como: papelería, vehículos y SOAT y que el campo de AIU solo aplica para aseo y cafetería. Firmas del documento: El ordenador del gasto de la Entidad Compradora debe firmar el documento y enviarlo al Proveedor para que lo acepte y firme, en caso de que así se requiera. El documento firmado debe ser enviado a través del aplicativo dispuesto por Colombia Compra Eficiente para realizar las acciones solicitadas. Fecha de elaboración del documento: Corresponde a la fecha en la que la Entidad Compradora y el Proveedor llegaron a un acuerdo para realizar las acciones y se suscribe el documento, recuerde que: (i) para poder realizar modificaciones en las Órdenes de Compra las mismas se deben acordar dentro de la vigencia de la Orden de Compra, (ii) Las órdenes de compra no se podrán modificar si ya se encuentran vencidas, (iii) Se da por realizada la modificación o acción que requiera realizar la Entidad, desde le momento en que las partes la firmen. Colombia Compra Eficiente lo único que realiza en la Tienda Virtual es el proceso de publicación de la modificación o ajuste que las partes hayan acordado a través de la firma de este documento. Si la Entidad Compradora requiere agregar archivos que estén relacionados con las acciones a realizar como: copia del CDP y/o aprobación de Vigencia Futura (VF) que soporta la adición, soportes documentales, correos, cartas, etc... debe publicarlos junto con el documento de modificación suscrito en un único archivo .Pdf con alta resolución de escaneo, si el documento no es legible se tomaran los cambios contenidos en el formato Excel, tenga en cuenta que Colombia Compra Eficiente únicamente publicará las modificaciones especificadas en el formato enviado por el aplicativo.

Sheet Listas (hidden)
A1: TipoDeModificacion | C1: Modificacion
A2: Modificación de Orden de Compra | C2: Modificación de artículo o servicio
A3: Aclaración a la Orden de Compra | C3: Agregar nuevo artículo o servicio
A4: Terminación de orden de compra | C4: Eliminar artículo o servicio
A5: Liquidación de Orden de Compra | C5: Ninguna
